[Event "FISCA Open 2022"]
[Site "Cap Aurora"]
[Date "2022.06.26"]
[Round "6.5"]
[White "Petre, Nad-Titus"]
[Black "Iordache, Alexia-Andreea"]
[Result "1-0"]
[ECO "A65"]
[WhiteElo "2297"]
[BlackElo "1658"]
[Annotator "TA"]
[PlyCount "119"]
[EventDate "2022.06.22"]
[EventType "swiss"]
[EventCountry "ROU"]
[SourceTitle "playchess.com"]
[Source "ChessBase"]
[SourceQuality "1"]
[TimeControl "5400+30"]

{[%evp 18,118,54,43,39,47,43,35,62,49,77,66,69,27,36,15,86,75,76,84,158,152,145,150,237,116,143,97,105,91,112,86,132,132,137,137,127,137,129,66,68,66,105,104,101,102,103,100,97,18,38,49,105,0,25,27,31,45,126,128,129,0,72,-66,-73,-164,-70,-52,343,336,390,350,400,389,402,402,801,768,854,754,1940,1869,1272,810,29986,29986,29977,29978,29990,29988,29984,29978,29994,29995,29995,29996,29996,29997,29997,29998,29998,29999,29999]} 1. d4 {[%emt 0:00:32]} Nf6 {[%emt 0:00:05]} 2. c4 {[%emt 0:00:08]} c5 {[%emt 0:00:04]} 3. d5 {[%emt 0:00:29]} e6 {[%emt 0:00:08]} 4. Nc3 {[%emt 0:00:18]} exd5 {[%emt 0:00:06]} 5. cxd5 {[%emt 0:00:05]} d6 {[%emt 0:00:03]} 6. e4 {[%emt 0:00:47]} g6 {[%emt 0:00:08]} 7. Nge2 {[%emt 0:00:15]} Bg7 {[%emt 0:04:01]} 8. Ng3 {[%emt 0:00:23]} O-O {[%emt 0:01:20]} 9. Be2 {[%emt 0:00:25]} a6 {[%emt 0:01:48]} 10. a4 {[%emt 0:00:31]} Re8 {[%emt 0:02:17] A65: Modern Benoni: 6 e4.} 11. O-O {[%emt 0:01:09]} Nbd7 {[%emt 0:02:52]} 12. f3 {[%emt 0:06:34]} Rb8 {[%emt 0:06:32] White is slightly better.} 13. Be3 {[%emt 0:02:00]} Ne5 {[%emt 0:07:28] has lost popularity (13...h5).} 14. h3 {[%emt 0:16:39]} h5 {[%emt 0:13:49] [#]} 15. Bg5 $146 {[%emt 0:07:05] Threatening f4.} ({Predecessor:} 15. Nh1 Qb6 16. Qc2 Qb4 17. Nf2 Nc4 18. Bc1 Na5 19. Bf4 c4 20. Be3 Nd7 21. f4 {0-1 (58) Omelja,A (2515)-Jaracz,P (2463) Chess.com INT 2022}) 15... Qb6 {[%emt 0:09:09]} 16. Qd2 {[%emt 0:00:21]} c4+ {[%emt 0:04:01]} (16... Qb4 $11) 17. Be3 $16 {[%emt 0:00:45]} Qc7 {[%emt 0:00:40]} 18. a5 {[%emt 0:02:23]} Ned7 {[%emt 0:03:45]} ({Black should try} 18... b6) 19. Na4 $1 {[%emt 0:02:16]} h4 {[%emt 0:05:56]} 20. Nh1 {[%emt 0:00:31]} Nh7 {[%emt 0:02:56]} (20... b6 $16 {was called for.}) 21. Rac1 {[%emt 0:02:45]} (21. Rfc1 $18 {has better winning chances.}) 21... c3 {[%emt 0:02:06]} 22. Nxc3 {[%emt 0:08:14]} (22. Rxc3 $142 Bxc3 23. Nxc3 (23. Qxc3 Qxc3 24. bxc3 f5 $14)) 22... Qxa5 {[%emt 0:00:43]} 23. Nf2 {[%emt 0:02:02]} Nc5 {[%emt 0:04:23]} 24. Ra1 {[%emt 0:02:28]} Qc7 {[%emt 0:03:08]} (24... Qb4 $142) 25. Ra3 {[%emt 0:00:23]} b5 {[%emt 0:02:02]} 26. b4 {[%emt 0:00:13]} Nd7 {[%emt 0:01:19]} 27. Rc1 {[%emt 0:01:19][%cal Oc3b5]} Qd8 {[%emt 0:02:00]} 28. Ba7 {[%emt 0:03:41]} (28. Bd3 $16) 28... Ra8 $1 $14 {[%emt 0:02:20]} 29. Bd4 {[%emt 0:00:12]} Bb7 {[%emt 0:02:26]} 30. Bxg7 {[%emt 0:03:57]} Kxg7 {[%emt 0:00:04]} 31. Ncd1 {[%emt 0:03:03]} Nhf6 {[%emt 0:04:20][%cal Bh7f6,Bf6h5,Bh5g3][%mdl 32]} 32. Ne3 {[%emt 0:03:36]} Nh5 {[%emt 0:01:55]} 33. Nc2 {[%emt 0:01:57]} ({Better is} 33. Rac3 $16) 33... Ng3 {[%emt 0:01:56][%cal Ob7d5]} 34. Nd4 {[%emt 0:02:16]} Ne5 {[%emt 0:03:25]} (34... Rc8 $14) 35. Ng4 {[%emt 0:05:53]} ({White should play} 35. f4 $1 $16 {[%cal Rf4e5]} Nxe2+ 36. Nxe2 (36. Qxe2 Nc4 $14)) 35... Nxg4 {[%emt 0:01:38]} 36. hxg4 {[%emt 0:00:10]} Qb6 {[%emt 0:07:37]} 37. Kh2 {[%emt 0:02:10]} Rh8 {[%emt 0:00:00]} (37... Rac8 $14 38. Rxc8 Bxc8) 38. Qe3 {[%emt 0:01:41]} Qd8 {[%emt 0:00:00]} 39. g5 $40 {[%emt 0:02:54][%mdl 128] White has some attack. White is more active.} (39. f4 $1 $16) 39... Qe7 {[%emt 0:00:28]} (39... Re8 $1 $11 {keeps the balance.}) 40. Qf4 {[%emt 0:05:47]} (40. Qc3 $16 {Nf5+ would kill now.} Kg8 41. Qe3) 40... Rac8 $15 {[%emt 0:00:58]} 41. Rac3 {[%emt 0:00:53] [#]} (41. Rxc8 $17 {is a better defense.} Rxc8 42. Ra2 (42. Qxh4 $2 Rh8 $19)) 41... Rxc3 {[%emt 0:00:14]} (41... Nh5 $1 $19 {[%cal Rh5f4]} 42. Qe3 Qe5+ 43. f4 Nxf4) 42. Rxc3 {[%emt 0:00:08]} Bc8 $2 {[%emt 0:00:28][%mdl 8192] [#] Loses the game.} (42... Nh5 $15 {keeps the upper hand.} 43. Qe3 Qe5+ 44. f4 Nxf4) 43. Nc6 $1 $18 {[%emt 0:04:03]} Nxe2 {[%emt 0:00:30]} 44. Qe3 {[%emt 0:00:31] Really sharp!} ({Less strong is} 44. Nxe7 Nxf4 45. Nxc8 h3 46. gxh3 (46. Nxd6 $2 hxg2+ 47. Kg3 g1=Q+ $19) 46... Rxh3+ 47. Kg1 Ne2+ 48. Kg2 Nxc3 $14) 44... Qd7 {[%emt 0:00:37]} 45. Qxe2 {[%emt 0:00:08]} h3 {[%emt 0:00:09] Strongly threatening ...hxg2+.} 46. g3 {[%emt 0:00:58]} Qe8 {[%emt 0:00:49]} (46... Bb7 $142 47. Qb2 Kh7) 47. Qe3 {[%emt 0:00:54] And now Qd4+ would win.} Bd7 {[%emt 0:00:35]} 48. Qd4+ {[%emt 0:00:10]} Kg8 {[%emt 0:00:32]} 49. Qf6 {[%emt 0:01:04]} Kh7 {[%emt 0:00:35]} 50. Qxd6 {[%emt 0:00:56] aiming for Ne5.} Bf5 {[%emt 0:00:27]} 51. Ne7 {[%emt 0:01:10] White mates.} Bd7 {[%emt 0:00:28]} 52. Rc7 {[%emt 0:01:20]} Bg4 {[%emt 0:00:34]} 53. fxg4 {[%emt 0:00:39]} Qf8 {[%emt 0:00:10]} 54. Qf6 {[%emt 0:00:38]} a5 {[%emt 0:00:40]} 55. Nxg6 {[%emt 0:00:32][%cal Be7g6,Bg6f8,Bf8e6][%mdl 32]} Qg7 {[%emt 0:00:29]} 56. Rxf7 {[%emt 0:00:20][%csl Gf6][%cal Rf7g7]} Rg8 {[%emt 0:00:04]} 57. Nf8+ {[%emt 0:00:37]} Kh8 {[%emt 0:00:09]} 58. Rxg7 {[%emt 0:00:05]} Rxg7 {[%emt 0:00:05]} 59. Ne6 {[%emt 0:00:05][%csl Ge6][%cal Rf6g7]} a4 {[%emt 0:00:06]} 60. Qxg7# {[%emt 0:00:06] Weighted Error Value: White=0.28 (precise) /Black=0.54} 1-0

[Event "FISCA Open 2022"]
[Site "Cap Aurora"]
[Date "2022.06.26"]
[Round "6.6"]
[White "Girmacea, Bogdan"]
[Black "Rata, Anamaria"]
[Result "1-0"]
[ECO "D43"]
[WhiteElo "2133"]
[BlackElo "1656"]
[Annotator "NA RC"]
[PlyCount "63"]
[EventDate "2022.06.22"]
[EventType "swiss"]
[EventCountry "ROU"]
[SourceTitle "playchess.com"]
[Source "ChessBase"]
[SourceQuality "1"]
[TimeControl "5400+30"]

1. d4 {[%emt 0:00:06]} d5 {[%emt 0:00:15]} 2. Nf3 {[%emt 0:01:34]} Nf6 {[%emt 0:00:07]} 3. c4 {[%emt 0:00:09]} c6 {[%emt 0:00:08]} 4. Qb3 {[%emt 0:00:30]} e6 {[%emt 0:14:46]} 5. Bg5 {[%emt 0:00:46]} Nbd7 {[%emt 0:01:07]} 6. e3 {[%emt 0:00:36]} Be7 {[%emt 0:00:29]} 7. Nc3 {[%emt 0:00:42]} b6 {[%emt 0:06:17]} 8. cxd5 {[%emt 0:03:35]} cxd5 {[%emt 0:04:14]} 9. Rc1 {[%emt 0:03:37]} a6 {[%emt 0:03:59]} 10. Bd3 {[%emt 0:04:36]} Bb7 {[%emt 0:00:51]} 11. O-O {[%emt 0:00:39]} O-O {[%emt 0:00:47]} 12. Rc2 {[%emt 0:09:37]} Rc8 {[%emt 0:08:13]} 13. Rfc1 {[%emt 0:01:23]} b5 {[%emt 0:05:44]} 14. Bxf6 {[%emt 0:13:31]} Nxf6 {[%emt 0:04:37]} 15. Na4 {[%emt 0:19:47]} Rxc2 {[%emt 0:32:41]} 16. Rxc2 {[%emt 0:00:45]} Qa5 {[%emt 0:00:52]} 17. Nc5 {[%emt 0:05:11]} Ba8 {[%emt 0:00:52]} 18. Qc3 {[%emt 0:14:12]} Qb6 {[%emt 0:04:20]} 19. Nb3 {[%emt 0:05:25]} Bd6 {[%emt 0:01:56]} 20. Qa5 {[%emt 0:00:13]} Qxa5 {[%emt 0:02:41]} 21. Nxa5 {[%emt 0:00:09]} Ne4 {[%emt 0:04:19]} 22. Kf1 {[%emt 0:02:02]} Rb8 {[%emt 0:00:54]} 23. g3 {[%emt 0:02:35]} Kf8 {[%emt 0:00:35]} 24. Ke2 {[%emt 0:01:04]} Bb7 {[%emt 0:00:57]} 25. Nxb7 {[%emt 0:01:29]} Rxb7 {[%emt 0:00:02]} 26. Bxe4 {[%emt 0:00:11]} dxe4 {[%emt 0:00:09]} 27. Ng5 {[%emt 0:00:09]} h6 {[%emt 0:01:21]} 28. Nxe4 {[%emt 0:00:08]} Bb4 {[%emt 0:00:30]} 29. a3 {[%emt 0:01:02]} Ba5 {[%emt 0:00:17]} 30. Rc6 {[%emt 0:00:29]} Rb6 {[%emt 0:00:40]} 31. Rc8+ {[%emt 0:00:14]} Ke7 {[%emt 0:00:03]} 32. b4 {[%emt 0:00:05]} 1-0

[Event "FISCA Open 2022"]
[Site "Cap Aurora"]
[Date "2022.06.26"]
[Round "6.8"]
[White "Stegaroiu, Marcel-Florian"]
[Black "Ribarov, Valerij"]
[Result "1-0"]
[ECO "E65"]
[WhiteElo "1917"]
[BlackElo "1918"]
[Annotator "NA RC"]
[PlyCount "66"]
[EventDate "2022.06.22"]
[EventType "swiss"]
[EventCountry "ROU"]
[SourceTitle "playchess.com"]
[Source "ChessBase"]
[SourceQuality "1"]
[TimeControl "5400+30"]

1. d4 {[%emt 0:00:02]} Nf6 {[%emt 0:00:12]} 2. Nf3 {[%emt 0:00:16]} g6 {[%emt 0:00:13]} 3. g3 {[%emt 0:00:09]} Bg7 {[%emt 0:00:02]} 4. Bg2 {[%emt 0:00:10]} O-O {[%emt 0:00:07]} 5. O-O {[%emt 0:00:02]} d6 {[%emt 0:00:29]} 6. c4 {[%emt 0:00:14]} c5 {[%emt 0:01:31]} 7. Nc3 {[%emt 0:01:59]} Nbd7 {[%emt 0:04:58]} 8. e4 {[%emt 0:05:19]} cxd4 {[%emt 0:03:14]} 9. Nxd4 {[%emt 0:00:08]} a6 {[%emt 0:00:18]} 10. h3 {[%emt 0:02:39]} Rb8 {[%emt 0:00:16]} 11. Be3 {[%emt 0:00:31]} Nc5 {[%emt 0:01:28]} 12. Rc1 {[%emt 0:02:41]} Bd7 {[%emt 0:00:17]} 13. b4 {[%emt 0:00:30]} Ne6 {[%emt 0:00:15]} 14. Nd5 {[%emt 0:00:33]} Nxd5 {[%emt 0:29:47]} 15. exd5 {[%emt 0:00:30]} Nxd4 {[%emt 0:00:23]} 16. Bxd4 {[%emt 0:00:06]} a5 {[%emt 0:04:48]} 17. Bxg7 {[%emt 0:00:32]} Kxg7 {[%emt 0:00:03]} 18. Qd4+ {[%emt 0:00:11]} Kg8 {[%emt 0:00:02]} 19. a3 {[%emt 0:00:34]} axb4 {[%emt 0:00:05]} 20. axb4 {[%emt 0:00:05]} b6 {[%emt 0:02:48]} 21. f4 {[%emt 0:03:10]} Qc7 {[%emt 0:04:11]} 22. Rfe1 {[%emt 0:00:25]} e6 {[%emt 0:02:34]} 23. h4 {[%emt 0:03:47]} Rfe8 {[%emt 0:04:53]} 24. h5 {[%emt 0:11:06]} gxh5 {[%emt 0:06:09]} 25. Qf6 {[%emt 0:00:25]} Qd8 {[%emt 0:01:45]} 26. Qh6 {[%emt 0:00:46]} Kh8 {[%emt 0:01:53]} 27. f5 {[%emt 0:02:09]} Rg8 {[%emt 0:11:39]} 28. fxe6 {[%emt 0:03:28]} fxe6 {[%emt 0:11:04]} 29. dxe6 {[%emt 0:01:46]} Rg6 {[%emt 0:00:14]} 30. Qf4 {[%emt 0:15:07]} Bxe6 {[%emt 0:01:35]} 31. Re3 {[%emt 0:11:50]} Rg4 {[%emt 0:02:39]} 32. Qh6 {[%emt 0:02:45]} Bxc4 {[%emt 0:01:56]} 33. Rxc4 {[%emt 0:01:27]} Rxc4 {[%emt 0:04:29]} 1-0

[Event "FISCA Open 2022"]
[Site "Cap Aurora"]
[Date "2022.06.26"]
[Round "6.9"]
[White "Spiridon, Mihai-Zoltan"]
[Black "Nicolae, Marian-Valentin"]
[Result "1/2-1/2"]
[ECO "D03"]
[WhiteElo "1678"]
[BlackElo "1886"]
[Annotator "NA RC"]
[PlyCount "49"]
[EventDate "2022.06.22"]
[EventType "swiss"]
[EventCountry "ROU"]
[SourceTitle "playchess.com"]
[Source "ChessBase"]
[SourceQuality "1"]
[TimeControl "5400+30"]

1. d4 {[%emt 0:03:19]} e6 {[%emt 0:00:38]} 2. Nf3 {[%emt 0:00:28]} d5 {[%emt 0:01:55]} 3. Bg5 {[%emt 0:01:16]} Nf6 {[%emt 0:03:43]} 4. e3 {[%emt 0:00:13]} Nbd7 {[%emt 0:01:15]} 5. Bd3 {[%emt 0:03:26]} Bd6 {[%emt 0:12:14]} 6. Nc3 {[%emt 0:02:00]} c6 {[%emt 0:02:45]} 7. e4 {[%emt 0:04:26]} e5 {[%emt 0:05:53]} 8. O-O {[%emt 0:09:39]} Qa5 {[%emt 0:17:23]} 9. Bxf6 {[%emt 0:05:16]} gxf6 {[%emt 0:02:07]} 10. exd5 {[%emt 0:00:13]} cxd5 {[%emt 0:00:59]} 11. dxe5 {[%emt 0:00:31]} Nxe5 {[%emt 0:07:23]} 12. Bb5+ {[%emt 0:00:39]} Bd7 {[%emt 0:09:53]} 13. Bxd7+ {[%emt 0:03:12]} Nxd7 {[%emt 0:02:07]} 14. Qxd5 {[%emt 0:00:08]} Qxd5 {[%emt 0:01:40]} 15. Nxd5 {[%emt 0:00:04]} O-O-O {[%emt 0:00:40]} 16. Rfe1 {[%emt 0:00:47]} Ne5 {[%emt 0:01:17]} 17. Nxe5 {[%emt 0:08:54]} Bxe5 {[%emt 0:00:29]} 18. c4 {[%emt 0:01:33]} Bxb2 {[%emt 0:01:50]} 19. Rad1 {[%emt 0:00:24]} Rhe8 {[%emt 0:01:52]} 20. Kf1 {[%emt 0:03:57]} Rxe1+ {[%emt 0:02:50]} 21. Kxe1 {[%emt 0:01:24]} Re8+ {[%emt 0:00:46]} 22. Kd2 {[%emt 0:00:17]} Bd4 {[%emt 0:00:51]} 23. f3 {[%emt 0:01:51]} f5 {[%emt 0:01:28]} 24. Kd3 {[%emt 0:02:03]} Bc5 {[%emt 0:00:29]} 25. Rd2 {[%emt 0:02:34]} 1/2-1/2

[Event "FISCA Open 2022"]
[Site "Cap Aurora"]
[Date "2022.06.26"]
[Round "6.10"]
[White "Negrean, Andrei"]
[Black "Schiopu, Oana-Magdalena"]
[Result "1-0"]
[ECO "E02"]
[WhiteElo "1846"]
[BlackElo "1683"]
[Annotator "NA RC"]
[PlyCount "47"]
[EventDate "2022.06.22"]
[EventType "swiss"]
[EventCountry "ROU"]
[SourceTitle "playchess.com"]
[Source "ChessBase"]
[SourceQuality "1"]
[TimeControl "5400+30"]

1. d4 {[%emt 0:00:06]} Nf6 {[%emt 0:00:50]} 2. Nf3 {[%emt 0:00:14]} d5 {[%emt 0:00:22]} 3. c4 {[%emt 0:00:26]} e6 {[%emt 0:00:35]} 4. g3 {[%emt 0:00:11]} dxc4 {[%emt 0:02:37]} 5. Qa4+ {[%emt 0:01:01]} Bd7 {[%emt 0:01:16]} 6. Qxc4 {[%emt 0:00:23]} Nc6 {[%emt 0:01:22]} 7. Bg2 {[%emt 0:03:30]} Bd6 {[%emt 0:05:57]} 8. O-O {[%emt 0:05:49]} O-O {[%emt 0:01:44]} 9. Nc3 {[%emt 0:04:13]} Re8 {[%emt 0:08:24]} 10. e4 {[%emt 0:13:53]} e5 {[%emt 0:07:37]} 11. d5 {[%emt 0:13:55]} Ne7 {[%emt 0:00:47]} 12. Bg5 {[%emt 0:09:41]} Ng6 {[%emt 0:04:53]} 13. Nb5 {[%emt 0:05:05]} h6 {[%emt 0:10:03]} 14. Nxd6 {[%emt 0:08:55]} cxd6 {[%emt 0:00:16]} 15. Bxf6 {[%emt 0:03:39]} Qxf6 {[%emt 0:00:21]} 16. Qc7 {[%emt 0:02:00]} Bb5 {[%emt 0:04:47]} 17. Rfc1 {[%emt 0:03:42]} b6 {[%emt 0:03:51]} 18. Nd2 {[%emt 0:04:11]} Rec8 {[%emt 0:02:27]} 19. Qxc8+ {[%emt 0:02:17]} Rxc8 {[%emt 0:00:04]} 20. Rxc8+ {[%emt 0:00:08]} Kh7 {[%emt 0:00:05]} 21. h4 {[%emt 0:03:18]} Qe7 {[%emt 0:09:03]} 22. Rac1 {[%emt 0:04:11]} Qd7 {[%emt 0:07:48]} 23. Kh2 {[%emt 0:03:17]} Qg4 {[%emt 0:04:04]} 24. Bf3 {[%emt 0:08:25]} 1-0

[Event "FISCA Open 2022"]
[Site "Cap Aurora"]
[Date "2022.06.26"]
[Round "6.11"]
[White "Bujorean, Dorel"]
[Black "Dobra, Costica"]
[Result "1/2-1/2"]
[ECO "E80"]
[WhiteElo "1608"]
[BlackElo "1837"]
[Annotator "NA RC"]
[PlyCount "108"]
[EventDate "2022.06.22"]
[EventType "swiss"]
[EventCountry "ROU"]
[SourceTitle "playchess.com"]
[Source "ChessBase"]
[SourceQuality "1"]
[TimeControl "5400+30"]

1. d4 {[%emt 0:01:58]} Nf6 {[%emt 0:00:10]} 2. c4 {[%emt 0:00:07]} g6 {[%emt 0:00:06]} 3. Nc3 {[%emt 0:00:08]} Bg7 {[%emt 0:00:07]} 4. e4 {[%emt 0:00:08]} d6 {[%emt 0:00:14]} 5. f3 {[%emt 0:00:07]} c5 {[%emt 0:00:46]} 6. d5 {[%emt 0:00:08]} Na6 {[%emt 0:01:48]} 7. Bg5 {[%emt 0:00:17]} Nc7 {[%emt 0:01:13]} 8. Bd3 {[%emt 0:01:46]} Bd7 {[%emt 0:01:10]} 9. Nge2 {[%emt 0:00:55]} a6 {[%emt 0:03:49]} 10. a4 {[%emt 0:00:46]} b6 {[%emt 0:00:28]} 11. O-O {[%emt 0:01:00]} Rb8 {[%emt 0:02:02]} 12. Rb1 {[%emt 0:17:15]} b5 {[%emt 0:02:05]} 13. b3 {[%emt 0:04:13]} O-O {[%emt 0:03:51]} 14. Qc2 {[%emt 0:01:37]} bxc4 {[%emt 0:00:43]} 15. Bxc4 {[%emt 0:01:52]} Rb4 {[%emt 0:05:50]} 16. Na2 {[%emt 0:02:31]} Rb7 {[%emt 0:00:53]} 17. Qd3 {[%emt 0:02:47]} a5 {[%emt 0:05:52]} 18. Bd2 {[%emt 0:00:58]} Ra7 {[%emt 0:03:20]} 19. Rbd1 {[%emt 0:07:36]} Bc8 {[%emt 0:11:04]} 20. Bc3 {[%emt 0:09:17]} Na6 {[%emt 0:01:30]} 21. h3 {[%emt 0:02:08]} Nd7 {[%emt 0:11:40]} 22. f4 {[%emt 0:03:27]} Bxc3 {[%emt 0:04:28]} 23. Nexc3 {[%emt 0:01:00]} Nb4 {[%emt 0:03:18]} 24. Qe2 {[%emt 0:01:38]} Nb6 {[%emt 0:04:13]} 25. Nb5 {[%emt 0:00:18]} Nxa2 {[%emt 0:05:33]} 26. Qxa2 {[%emt 0:01:01]} Ra8 {[%emt 0:00:51]} 27. e5 {[%emt 0:02:05]} Ba6 {[%emt 0:04:53]} 28. Qe2 {[%emt 0:03:20]} Bxb5 {[%emt 0:03:13]} 29. Bxb5 {[%emt 0:00:32]} Qc7 {[%emt 0:02:05]} 30. Bc6 {[%emt 0:01:10]} Ra7 {[%emt 0:03:39]} 31. Qe4 {[%emt 0:03:10]} Nd7 {[%emt 0:01:37]} 32. exd6 {[%emt 0:02:38]} exd6 {[%emt 0:02:10]} 33. Rfe1 {[%emt 0:02:52]} Nf6 {[%emt 0:01:47]} 34. Qd3 {[%emt 0:00:28]} Nh5 {[%emt 0:01:48]} 35. g3 {[%emt 0:03:16]} Qd8 {[%emt 0:03:02]} 36. Qe3 {[%emt 0:01:20]} Qf6 {[%emt 0:00:31]} 37. Kh2 {[%emt 0:03:20]} Rb8 {[%emt 0:00:57]} 38. Bb5 {[%emt 0:00:42]} Ng7 {[%emt 0:02:29]} 39. g4 {[%emt 0:00:58]} Kf8 {[%emt 0:01:20]} 40. Qd2 {[%emt 0:01:24]} h5 {[%emt 0:00:34]} 41. Kg3 {[%emt 0:00:25]} h4+ {[%emt 0:00:38]} 42. Kg2 {[%emt 0:01:04]} Ne8 {[%emt 0:00:38]} 43. Re4 {[%emt 0:01:09]} Nc7 {[%emt 0:00:35]} 44. Bc4 {[%emt 0:00:46]} Re8 {[%emt 0:00:30]} 45. Rde1 {[%emt 0:02:38]} Rxe4 {[%emt 0:00:20]} 46. Rxe4 {[%emt 0:00:03]} Ra8 {[%emt 0:00:26]} 47. Re2 {[%emt 0:06:05]} Qa1 {[%emt 0:01:36]} 48. Qb2 {[%emt 0:01:55]} Qxb2 {[%emt 0:00:14]} 49. Rxb2 {[%emt 0:00:02]} Re8 {[%emt 0:00:24]} 50. Kf3 {[%emt 0:00:19]} f6 {[%emt 0:00:29]} 51. Rd2 {[%emt 0:02:40]} Re1 {[%emt 0:00:21]} 52. Kf2 {[%emt 0:02:24]} Re4 {[%emt 0:00:35]} 53. Kf3 {[%emt 0:00:04]} Re1 {[%emt 0:00:09]} 54. Kf2 {[%emt 0:00:50]} Re4 {[%emt 0:00:16]} 1/2-1/2

[Event "FISCA Open 2022"]
[Site "Cap Aurora"]
[Date "2022.06.26"]
[Round "6.12"]
[White "Nacu, Mihai"]
[Black "Sprincean, Lukas George"]
[Result "1-0"]
[ECO "A29"]
[WhiteElo "1641"]
[BlackElo "1664"]
[Annotator "NA RC"]
[PlyCount "75"]
[EventDate "2022.06.22"]
[EventType "swiss"]
[EventCountry "ROU"]
[SourceTitle "playchess.com"]
[Source "ChessBase"]
[SourceQuality "1"]
[TimeControl "5400+30"]

1. c4 {[%emt 1:31:00]} e5 {[%emt 1:31:00]} 2. Nc3 {[%emt 0:00:30]} Nf6 {[%emt 0:00:30]} 3. Nf3 {[%emt 0:00:30]} Nc6 {[%emt 0:00:30]} 4. g3 {[%emt 0:00:30]} Bb4 {[%emt 0:00:30]} 5. Bg2 {[%emt 0:00:30]} O-O {[%emt 0:00:30]} 6. O-O {[%emt 0:00:30]} d6 7. d3 {[%emt 0:00:30]} Bxc3 {[%emt 0:01:00]} 8. bxc3 {[%emt 0:00:30]} Ne8 {[%emt 0:00:30]} 9. e4 Bd7 {[%emt 0:00:30]} 10. Rb1 {[%emt 0:01:00]} Qc8 {[%emt 0:00:30]} 11. Nh4 {[%emt 0:00:30]} Bg4 {[%emt 0:00:30]} 12. f3 {[%emt 0:00:30]} Be6 {[%emt 0:00:30]} 13. f4 {[%emt 0:00:30]} Bg4 {[%emt 0:00:30]} 14. Qc2 {[%emt 0:00:30]} exf4 {[%emt 0:00:30]} 15. Bxf4 {[%emt 0:00:30]} Ne5 {[%emt 0:00:30]} 16. Nf3 {[%emt 0:00:30]} Ng6 {[%emt 0:00:30]} 17. Be3 {[%emt 0:00:30]} Nf6 {[%emt 0:00:30]} 18. Nd4 c6 {[%emt 0:00:30]} 19. Bg5 {[%emt 0:01:00]} Nd7 {[%emt 0:00:30]} 20. h3 {[%emt 0:00:30]} Be6 {[%emt 0:00:30]} 21. Nxe6 {[%emt 0:00:30]} fxe6 {[%emt 0:00:30]} 22. d4 {[%emt 0:00:30]} c5 {[%emt 0:00:30]} 23. Rxf8+ {[%emt 0:00:30]} Ndxf8 {[%emt 0:00:30]} 24. e5 d5 {[%emt 0:00:30]} 25. cxd5 {[%emt 0:01:00]} cxd4 {[%emt 0:00:30]} 26. c4 {[%emt 0:00:30]} Nxe5 {[%emt 0:00:30]} 27. dxe6 {[%emt 0:00:30]} Qc5 {[%emt 0:00:30]} 28. Bxb7 {[%emt 0:00:30]} Rb8 {[%emt 0:00:30]} 29. e7 {[%emt 0:00:30]} Rxb7 {[%emt 0:00:30]} 30. exf8=Q+ {[%emt 0:00:30]} Qxf8 {[%emt 0:00:30]} 31. Rxb7 {[%emt 0:00:30]} Nf3+ {[%emt 0:00:30]} 32. Kh1 {[%emt 0:00:30]} Nxg5 {[%emt 0:00:30]} 33. Qg2 h6 {[%emt 0:00:30]} 34. Rxa7 {[%emt 0:01:00]} Kh7 {[%emt 0:00:30]} 35. h4 {[%emt 0:00:30]} Nf3 {[%emt 0:00:30]} 36. Qc2+ {[%emt 0:00:30]} Kh8 {[%emt 0:00:30]} 37. Qe4 {[%emt 0:00:30]} Nd2 {[%emt 0:00:30]} 38. Qa8 1-0

[Event "FISCA Open 2022"]
[Site "Cap Aurora"]
[Date "2022.06.26"]
[Round "6.13"]
[White "Angheluta, Ovidiu"]
[Black "Togan, Teodor-Bogdan"]
[Result "1/2-1/2"]
[ECO "C30"]
[WhiteElo "1807"]
[BlackElo "1507"]
[Annotator "NA RC"]
[PlyCount "86"]
[EventDate "2022.06.22"]
[EventType "swiss"]
[EventCountry "ROU"]
[SourceTitle "playchess.com"]
[Source "ChessBase"]
[SourceQuality "1"]
[TimeControl "5400+30"]

1. e4 {[%emt 0:07:04]} e5 {[%emt 0:07:59]} 2. f4 {[%emt 0:00:10]} Bc5 {[%emt 0:00:06]} 3. Nf3 {[%emt 0:00:22]} d6 {[%emt 0:00:10]} 4. c3 {[%emt 0:00:16]} Nf6 {[%emt 0:00:07]} 5. d4 {[%emt 0:00:11]} exd4 {[%emt 0:00:19]} 6. cxd4 {[%emt 0:00:13]} Bb4+ {[%emt 0:00:40]} 7. Bd2 {[%emt 0:00:24]} Bxd2+ {[%emt 0:00:54]} 8. Nbxd2 {[%emt 0:00:14]} O-O {[%emt 0:01:18]} 9. e5 {[%emt 0:02:09]} Nd5 {[%emt 0:03:34]} 10. Ne4 {[%emt 0:05:08]} Nxf4 {[%emt 0:02:56]} 11. Qd2 {[%emt 0:00:53]} Ng6 {[%emt 0:01:08]} 12. h4 {[%emt 0:04:07]} h6 {[%emt 0:25:15]} 13. Nf6+ {[%emt 0:04:05]} Kh8 {[%emt 0:08:50]} 14. h5 {[%emt 0:02:09]} Ne7 {[%emt 0:07:50]} 15. g4 {[%emt 0:14:35]} Nd7 {[%emt 0:12:32]} 16. O-O-O {[%emt 0:15:58]} Ng8 {[%emt 0:08:53]} 17. Nxg8 {[%emt 0:04:12]} Kxg8 {[%emt 0:01:32]} 18. g5 {[%emt 0:00:05]} hxg5 {[%emt 0:00:44]} 19. Nxg5 {[%emt 0:00:33]} dxe5 {[%emt 0:00:42]} 20. dxe5 {[%emt 0:00:18]} Qe7 {[%emt 0:02:05]} 21. e6 {[%emt 0:24:51]} fxe6 {[%emt 0:00:43]} 22. h6 {[%emt 0:01:00]} g6 {[%emt 0:00:21]} 23. h7+ {[%emt 0:02:29]} Kh8 {[%emt 0:00:32]} 24. Bd3 {[%emt 0:07:40]} Ne5 {[%emt 0:02:00]} 25. Bc2 {[%emt 0:01:25]} Bd7 {[%emt 0:01:30]} 26. Qe3 {[%emt 0:00:15]} Qg7 {[%emt 0:05:40]} 27. Rhe1 {[%emt 0:01:44]} Ng4 {[%emt 0:01:03]} 28. Qg3 {[%emt 0:01:11]} e5 {[%emt 0:00:27]} 29. Re4 {[%emt 0:00:41]} Nf2 {[%emt 0:00:45]} 30. Rxd7 {[%emt 0:00:20]} Qxd7 {[%emt 0:00:23]} 31. Qxe5+ {[%emt 0:00:09]} Qg7 {[%emt 0:00:06]} 32. Qxg7+ {[%emt 0:00:24]} Kxg7 {[%emt 0:00:09]} 33. Re7+ {[%emt 0:00:09]} Kh6 {[%emt 0:00:18]} 34. h8=Q+ {[%emt 0:02:06]} Rxh8 {[%emt 0:00:20]} 35. Nf7+ {[%emt 0:00:00]} Kh5 {[%emt 0:00:08]} 36. Nxh8 {[%emt 0:00:00]} Rxh8 {[%emt 0:00:08]} 37. Re2 {[%emt 0:00:00]} Rf8 {[%emt 0:00:33]} 38. Re7 {[%emt 0:00:00]} Rc8 {[%emt 0:04:35]} 39. Rh7+ {[%emt 0:00:00]} Kg5 {[%emt 0:00:17]} 40. Rg7 {[%emt 0:00:01]} Kf6 {[%emt 0:01:07]} 41. Rxg6+ {[%emt 0:00:12]} Ke7 {[%emt 0:00:34]} 42. Rg2 {[%emt 0:00:27]} Rf8 {[%emt 0:00:41]} 43. Kd2 {[%emt 0:00:41]} Nh3 {[%emt 0:00:34]} 1/2-1/2